fUST/lending_fUST_20250429
["ID","MTS","AMOUNT","RATE_DAILY","PERIOD"]
[359323767,1745922638012,-418.09973231,0.0003589,3]
[359323768,1745922638021,-921.52,0.0003589,3]
[359323769,1745922638031,-400.0,0.0003589,3]
[359323770,1745922638040,-400.0,0.0003589,3]
[359323771,1745922638049,-400.0,0.0003589,3]
[359323772,1745922638059,-400.0,0.0003589,3]
[359323773,1745922638068,-400.0,0.0003589,3]
[359323774,1745922638078,-400.0,0.0003589,3]
[359323775,1745922638088,-400.0,0.0003589,3]
[359323776,1745922638097,-400.0,0.0003589,3]
[359323777,1745922638107,-488.73,0.0003589,3]
[359323778,1745922638117,-400.0,0.0003589,3]
[359323779,1745922638127,-453.06216664,0.0003589,3]
[359323780,1745922638137,-400.0,0.0003589,3]
[359323781,1745922638147,-400.0,0.0003589,3]
[359323782,1745922638160,-400.0,0.0003589,3]
[359323783,1745922638170,-450.34,0.0003589,3]
[359323784,1745922638180,-400.0,0.0003589,3]
[359323785,1745922638189,-400.0,0.0003589,3]
[359323786,1745922638199,-400.0,0.0003589,3]
[359323787,1745922638208,-400.0,0.0003589,3]
[359323788,1745922638217,-400.0,0.0003589,3]
[359323789,1745922638227,-822.58,0.0003589,3]
[359323790,1745922638237,-414.51303545,0.0003589,3]
[359323791,1745922638247,-698.7,0.0003589,3]
[359323792,1745922638257,-499.49,0.0003589,3]
[359323793,1745922638266,-410.48926318,0.0003589,3]
[359323794,1745922638276,-500.67,0.0003589,3]
[359323795,1745922638285,-400.0,0.0003589,3]
[359323796,1745922638295,-1233.26,0.0003589,3]
[359323797,1745922638305,-419.09,0.0003589,3]
[359323798,1745922638314,-197.91609587,0.0003589,3]
[359323799,1745922638324,-470.66,0.0003589,3]
[359323800,1745922638334,-204.93874451,0.0003589,3]
[359323801,1745922638343,-1768.02,0.0003589,3]
[359323802,1745922638353,-400.0,0.0003589,3]
[359323803,1745922638362,-453.13,0.0003589,3]
[359323804,1745922638372,-872.56,0.0003589,3]
[359323805,1745922638381,-453.42,0.0003589,3]
[359323806,1745922638391,-893.97,0.0003589,3]
[359323807,1745922638401,-1230.14,0.0003589,3]
[359323808,1745922638410,-400.0,0.0003589,3]
[359323809,1745922638420,-400.0,0.0003589,3]
[359323810,1745922638430,-400.0,0.0003589,3]
[359323811,1745922638440,-400.0,0.0003589,3]
[359323812,1745922638449,-731.54,0.0003589,3]
[359323813,1745922638459,-613.33,0.0003589,3]
[359323814,1745922638468,-815.63,0.0003589,3]
[359323815,1745922638478,-400.0,0.0003589,3]
[359323816,1745922638487,-400.0,0.0003589,3]
[359323817,1745922638496,-400.0,0.0003589,3]
[359323818,1745922638506,-400.0,0.0003589,3]
[359323819,1745922638516,-661.18,0.0003589,3]
[359323820,1745922638526,-400.0,0.0003589,3]
[359323821,1745922638536,-400.0,0.0003589,3]
[359323822,1745922638546,-400.0,0.0003589,3]
[359323823,1745922638555,-400.0,0.0003589,3]
[359323824,1745922638564,-400.0,0.0003589,3]
[359323825,1745922638575,-400.0,0.0003589,3]
[359323826,1745922638584,-614.38,0.0003589,3]
[359323827,1745922638594,-710.68,0.0003589,3]
[359323828,1745922638603,-400.0,0.0003589,3]
[359323829,1745922638614,-400.0,0.0003589,3]
[359323830,1745922638623,-400.0,0.0003589,3]
[359323831,1745922638634,-400.0,0.0003589,3]
[359323832,1745922638643,-400.0,0.0003589,3]
[359323833,1745922638653,-400.0,0.0003589,3]
[359323834,1745922638662,-778.75,0.0003589,3]
[359323835,1745922638673,-843.15,0.0003589,3]
[359323836,1745922638683,-507.14,0.0003589,3]
[359323837,1745922638692,-461.31,0.0003589,3]
[359323838,1745922638702,-737.6,0.0003589,3]
[359323839,1745922638712,-400.0,0.0003589,3]
[359323840,1745922638722,-405.55886331,0.0003589,3]
[359323841,1745922638731,-511.76304924,0.0003589,3]
[359323842,1745922638741,-412.64071358,0.0003589,3]
[359323843,1745922638751,-400.0,0.0003589,3]
[359323844,1745922638761,-579.37,0.0003589,3]
[359323845,1745922638771,-400.0,0.0003589,3]
[359323846,1745922638781,-1129.43,0.0003589,3]
[359323847,1745922638791,-400.0,0.0003589,3]
[359323848,1745922638801,-2744.68,0.0003589,3]
[359323849,1745922638810,-507.62,0.0003589,3]
[359323850,1745922638820,-400.0,0.0003589,3]
[359323851,1745922638829,-1676.05,0.0003589,3]
[359323852,1745922638839,-679.62,0.0003589,3]
[359323853,1745922638848,-729.42,0.0003589,3]
[359323854,1745922638858,-318.09020635,0.0003589,3]
[359323855,1745922638867,-472.57,0.0003589,3]
[359323856,1745922638877,-400.0,0.0003589,3]
[359323857,1745922638887,-400.0,0.0003589,3]
[359323858,1745922638896,-4983.69,0.0003589,3]
[359323859,1745922638906,-1094.83,0.0003589,3]
[359323860,1745922638915,-400.0,0.0003589,3]
[359323861,1745922638925,-402.60440826,0.0003589,3]
[359323862,1745922638934,-539.41,0.0003589,3]
[359323863,1745922638943,-400.0,0.0003589,3]
[359323864,1745922638952,-500.0,0.0003589,3]
[359323865,1745922638962,-400.0,0.0003589,3]
[359323866,1745922638971,-400.0,0.0003589,3]
[359323867,1745922638980,-196.56527043,0.0003589,3]
[359323868,1745922639026,-232.46472957,0.0003589,3]
[359323869,1745922639035,-400.0,0.0003589,3]
[359323870,1745922639045,-1569.51,0.0003589,3]
[359323871,1745922639054,-400.0,0.0003589,3]
[359323872,1745922639064,-406.3205114,0.0003589,3]
[359323873,1745922639074,-127.14783425,0.0003589,3]
[359323881,1745922639873,-272.85216575,0.0003589,3]
[359323883,1745922639883,-400.0,0.0003589,3]
[359323885,1745922639892,-400.0,0.0003589,3]
[359323887,1745922639901,-582.57,0.0003589,3]
[359323889,1745922639911,-400.0,0.0003589,3]
[359323891,1745922639920,-400.0,0.0003589,3]
[359323893,1745922639930,-400.0,0.0003589,3]
[359323895,1745922639940,-1968.53,0.0003589,3]
[359323897,1745922639950,-621.56,0.0003589,3]
[359323899,1745922639959,-400.0,0.0003589,3]
[359323901,1745922639969,-2132.49,0.0003589,3]
[359323903,1745922639978,-814.03,0.0003589,3]
[359323905,1745922639988,-400.0,0.0003589,3]
[359323907,1745922639997,-508.14539928,0.0003589,3]
[359323909,1745922640007,-400.0,0.0003589,3]
[359323911,1745922640017,-805.39,0.0003589,3]
[359323913,1745922640026,-163.32497088,0.0003589,3]
[359323915,1745922640036,-704.17,0.0003589,3]
[359323917,1745922640045,-400.0,0.0003589,3]
[359323919,1745922640055,-658.92,0.0003589,3]
[359323921,1745922640064,-400.0,0.0003589,3]
[359323923,1745922640073,-334.32427882,0.0003589,3]
[359323925,1745922640083,-861.58,0.0003589,3]
[359323927,1745922640092,-1060.71,0.0003589,3]
[359323929,1745922640101,-400.0,0.0003589,3]
[359323931,1745922640111,-622.88,0.0003589,3]
[359323933,1745922640120,-599.64,0.0003589,3]
[359323935,1745922640130,-400.0,0.0003589,3]
[359323937,1745922640140,-400.0,0.0003589,3]
[359323939,1745922640150,-198.83409786,0.0003589,3]
[359323942,1745922640164,-400.0,0.0003589,3]
[359323944,1745922640175,-509.30132439,0.0003589,3]
[359323946,1745922640184,-400.0,0.0003589,3]
[359323948,1745922640195,-1380.1,0.0003589,3]
[359323950,1745922640204,-400.0,0.0003589,3]
[359323952,1745922640214,-512.24,0.0003589,3]
[359323954,1745922640225,-400.0,0.0003589,3]
[359323956,1745922640236,-883.94,0.0003589,3]
[359323958,1745922640246,-1010.76,0.0003589,3]
[359323960,1745922640256,-2127.15,0.0003589,3]
[359323962,1745922640266,-400.0,0.0003589,3]
[359323964,1745922640276,-400.0,0.0003589,3]
[359323986,1745922640465,-151.0,0.0003589,14]
[359323988,1745922640475,-151.0,0.0003589,14]
[359323990,1745922640484,-1614.14,0.0003589,3]
[359323992,1745922640493,-3238.76,0.0003589,3]
[359323994,1745922640503,-714.04,0.0003589,3]
[359323996,1745922640515,-1634.2,0.0003589,3]
[359323998,1745922640525,-2363.06,0.0003589,3]
[359324000,1745922640534,-424.54,0.0003589,3]
[359324002,1745922640544,-5143.41,0.0003589,3]
[359324004,1745922640553,-2597.03,0.0003589,3]
[359324006,1745922640563,-2033.23,0.0003589,3]
[359324008,1745922640573,-7134.96,0.0003589,3]
[359324010,1745922640583,-677.76,0.0003589,3]
[359324012,1745922640592,-400.0,0.0003589,3]
[359324014,1745922640602,-400.0,0.0003589,3]
[359324016,1745922640612,-3603.37,0.0003589,3]
[359324018,1745922640621,-4706.28,0.0003589,3]
[359324020,1745922640630,-1254.33,0.0003589,3]
[359324022,1745922640640,-426.3,0.0003589,3]
[359324024,1745922640649,-723.16,0.0003589,3]
[359324027,1745922640659,-865.74,0.0003589,3]
[359324029,1745922640669,-1773.04,0.0003589,3]
[359324031,1745922640678,-400.0,0.0003589,3]
[359324033,1745922640688,-400.0,0.0003589,3]
[359324035,1745922640697,-400.0,0.0003589,3]
[359324037,1745922640706,-400.0,0.0003589,3]
[359324039,1745922640716,-400.0,0.0003589,3]
[359324041,1745922640725,-2435.5,0.0003589,3]
[359324043,1745922640734,-564.86,0.0003589,3]
[359324045,1745922640744,-400.0,0.0003589,3]
[359324047,1745922640754,-400.0,0.0003589,3]
[359324049,1745922640764,-3151.5,0.0003589,3]
[359324051,1745922640773,-400.0,0.0003589,3]
[359324053,1745922640782,-341.35994344,0.0003589,3]
[359324055,1745922640791,-742.97,0.0003589,3]
[359324056,1745922640800,-1227.94,0.0003589,3]
[359324058,1745922640810,-357.23119654,0.0003589,3]
[359324060,1745922640820,-666.56,0.0003589,3]
[359324063,1745922640831,-717.92,0.0003589,3]
[359324065,1745922640842,-475.29,0.0003589,3]
[359324066,1745922640851,-400.0,0.0003589,3]
[359324068,1745922640860,-400.0,0.0003589,3]
[359324070,1745922640869,-3134.31,0.0003589,3]
[359324072,1745922640879,-3020.07,0.0003589,2]
[359324074,1745922640888,-493.05,0.0003589,3]
[359324076,1745922640897,-2942.08,0.0003589,3]
[359324078,1745922640907,-1431.37,0.0003589,3]
[359324080,1745922640917,-2174.15,0.0003589,3]
[359324082,1745922640926,-400.0,0.0003589,3]
[359324084,1745922640936,-1258.98,0.0003589,3]
[359324086,1745922640945,-1000.0,0.0003589,3]
[359324088,1745922640955,-510.46620915,0.0003589,3]
[359324090,1745922640964,-4799.57,0.0003589,3]
[359324092,1745922640974,-400.0,0.0003589,3]
[359324094,1745922640983,-400.0,0.0003589,3]
[359324096,1745922640993,-827.81,0.0003589,3]
[359324098,1745922641002,-151.0,0.0003589,14]
[359324100,1745922641011,-413.96,0.0003589,3]
[359324102,1745922641020,-1506.91,0.0003589,3]
[359324104,1745922641029,-438.22,0.0003589,3]
[359324106,1745922641038,-10675.77,0.0003589,3]
[359324108,1745922641048,-872.94,0.0003589,3]
[359324110,1745922641057,-1784.51,0.0003589,3]
[359324112,1745922641067,-400.0,0.0003589,3]
[359324114,1745922641076,-2325.79,0.0003589,3]
[359324116,1745922641085,-3837.71,0.0003589,3]
[359324118,1745922641095,-839.66,0.0003589,3]
[359324120,1745922641104,-419.75421317,0.0003589,3]
[359324122,1745922641113,-3010.95,0.0003589,3]
[359324124,1745922641122,-400.0,0.0003589,3]
[359324126,1745922641131,-436.5036444,0.0003589,3]
[359324128,1745922641141,-400.0,0.0003589,3]
[359324130,1745922641150,-400.0,0.0003589,3]
[359324132,1745922641163,-575.73,0.0003589,3]
[359324135,1745922641174,-521.62965697,0.0003589,3]
[359324136,1745922641184,-491.93,0.0003589,3]
[359324138,1745922641193,-407.54638892,0.0003589,3]
[359324140,1745922641202,-400.0,0.0003589,3]
[359324142,1745922641212,-434.43228147,0.0003589,3]
[359324144,1745922641221,-2936.77,0.0003589,3]
[359324146,1745922641231,-400.0,0.0003589,3]
[359324148,1745922641240,-1464.34,0.0003589,3]
[359324150,1745922641250,-547.57,0.0003589,3]
[359324153,1745922641260,-400.0,0.0003589,3]
[359324155,1745922641269,-2162.08,0.0003589,3]
[359324157,1745922641281,-400.0,0.0003589,3]
[359324159,1745922641290,-417.89,0.0003589,3]
[359324161,1745922641300,-7432.5,0.0003589,3]
[359324163,1745922641309,-400.0,0.0003589,3]
[359324165,1745922641319,-800.61,0.0003589,3]
[359324167,1745922641328,-823.37,0.0003589,3]
[359324169,1745922641337,-547.95,0.0003589,3]
[359324171,1745922641347,-1066.91,0.0003589,3]
[359324173,1745922641356,-605.37,0.0003589,3]
[359324175,1745922641365,-737.57,0.0003589,3]
[359324177,1745922641376,-2924.1,0.0003589,3]
[359324179,1745922641385,-6748.07,0.0003589,3]
[359324181,1745922641394,-569.77238791,0.0003589,3]
[359324183,1745922641408,-2844.17761209,0.0003589,3]
[359324185,1745922641418,-400.0,0.0003589,3]
[359324187,1745922641427,-3856.06,0.0003589,3]
[359324190,1745922641438,-521.37740117,0.0003589,3]
[359324192,1745922641447,-400.0,0.0003589,3]
[359324194,1745922641457,-400.0,0.0003589,3]
[359324195,1745922641467,-441.76,0.0003589,3]
[359324198,1745922641476,-671.93,0.0003589,3]
[359324199,1745922641486,-413.93577674,0.0003589,3]
[359324202,1745922641495,-859.79,0.0003589,3]
[359324204,1745922641505,-400.0,0.0003589,3]
[359324205,1745922641514,-735.25,0.0003589,3]
[359324208,1745922641524,-917.71,0.0003589,3]
[359324210,1745922641535,-2487.24,0.0003589,3]
[359324212,1745922641545,-776.41,0.0003589,3]
[359324213,1745922641554,-2497.48,0.0003589,3]
[359324215,1745922641564,-400.0,0.0003589,3]
[359324218,1745922641574,-519.91671461,0.0003589,3]
[359324220,1745922641583,-991.74,0.0003589,3]
[359324222,1745922641593,-519.66283113,0.0003589,3]
[359324224,1745922641604,-3202.95,0.0003589,3]
[359324226,1745922641613,-1012.7,0.0003589,3]
[359324228,1745922641624,-2771.31,0.0003589,3]
[359324230,1745922641633,-400.0,0.0003589,3]
[359324232,1745922641644,-1364.3,0.0003589,3]
[359324234,1745922641654,-400.0,0.0003589,3]
[359324236,1745922641663,-400.0,0.0003589,3]
[359324238,1745922641674,-5522.48,0.0003589,3]
[359324240,1745922641683,-2717.23,0.0003589,3]
[359324242,1745922641693,-400.0,0.0003589,3]
[359324244,1745922641703,-1063.51,0.0003589,3]
[359324246,1745922641712,-400.0,0.0003589,3]
[359324248,1745922641722,-4521.44,0.0003589,3]
[359324250,1745922641731,-583.82,0.0003589,3]
[359324252,1745922641741,-400.0,0.0003589,3]
[359324254,1745922641751,-879.15,0.0003589,3]
[359324256,1745922641760,-2032.66,0.0003589,3]
[359324258,1745922641769,-431.22357185,0.0003589,3]
[359324260,1745922641778,-2728.03,0.0003589,3]
[359324262,1745922641788,-151.0,0.0003589,14]
[359324264,1745922641797,-151.0,0.0003589,14]
[359324266,1745922641807,-400.0,0.0003589,3]
[359324268,1745922641816,-400.0,0.0003589,3]
[359324270,1745922641825,-806.32,0.0003589,3]
[359324272,1745922641834,-400.0,0.0003589,3]
[359324274,1745922641843,-151.0,0.0003589,14]
[359324276,1745922641853,-151.0,0.0003589,14]
[359324278,1745922641862,-338.22636484,0.00035927,2]
[359324280,1745922641871,-338.22636484,0.00036064,2]
[359324282,1745922641881,-509.50576234,0.00036119,2]
[359324284,1745922641890,-9336.11298994,0.0003616,3]
[359324286,1745922641900,-519.37398854,0.00036164,3]
[359324288,1745922641909,-400.0,0.00036164,3]
[359324290,1745922641918,-400.0,0.00036164,3]
[359324292,1745922641928,-921.52,0.00036164,3]
[359324294,1745922641937,-400.0,0.00036164,3]
[359324296,1745922641946,-400.0,0.00036164,3]
[359324298,1745922641956,-400.0,0.00036164,3]
[359324300,1745922641965,-400.0,0.00036164,3]
[359324302,1745922641975,-171.16490078,0.00036164,3]
[359324304,1745922641985,-400.0,0.00036164,3]
[359324306,1745922641995,-400.0,0.00036164,3]
[359324308,1745922642004,-418.2248331,0.00036164,3]
[359324310,1745922642014,-488.73,0.00036164,3]
[359324312,1745922642024,-400.0,0.00036164,3]
[359324314,1745922642034,-400.0,0.00036164,3]
[359324316,1745922642044,-528.24947502,0.00036164,3]
[359324318,1745922642053,-400.0,0.00036164,3]
[359324320,1745922642063,-450.34,0.00036164,3]
[359324322,1745922642073,-400.0,0.00036164,3]
[359324324,1745922642082,-515.57,0.00036164,3]
[359324326,1745922642091,-400.0,0.00036164,3]
[359324328,1745922642101,-400.0,0.00036164,3]
[359324330,1745922642110,-400.0,0.00036164,3]
[359324332,1745922642119,-822.58,0.00036164,3]
[359324334,1745922642128,-698.7,0.00036164,3]
[359324336,1745922642138,-499.49,0.00036164,3]
[359324338,1745922642148,-500.67,0.00036164,3]
[359324341,1745922642162,-190.4898767,0.00036164,3]
[359324343,1745922642172,-1233.26,0.00036164,3]
[359324345,1745922642182,-419.09,0.00036164,3]
[359324347,1745922642191,-470.66,0.00036164,3]
[359324349,1745922642202,-1768.02,0.00036164,3]
[359324351,1745922642212,-400.0,0.00036164,3]
[359324353,1745922642222,-453.13,0.00036164,3]
[359324355,1745922642231,-872.56,0.00036164,3]
[359324357,1745922642241,-453.42,0.00036164,3]
[359324359,1745922642251,-893.97,0.00036164,3]
[359324361,1745922642260,-1230.14,0.00036164,3]
[359324363,1745922642270,-297.33461079,0.00036164,3]
[359324365,1745922642279,-302.38199519,0.00036164,3]
[359324367,1745922642289,-461.26404211,0.00036164,3]
[359324369,1745922642298,-400.0,0.00036164,3]
[359324371,1745922642307,-731.54,0.00036164,3]
[359324373,1745922642316,-613.33,0.00036164,3]
[359324375,1745922642325,-815.63,0.00036164,3]
[359324377,1745922642335,-322.86791449,0.00036164,3]
[359324379,1745922642345,-400.0,0.00036164,3]
[359324382,1745922642355,-400.0,0.00036164,3]
[359324385,1745922642364,-400.0,0.00036164,3]
[359324387,1745922642374,-661.18,0.00036164,3]
[359324389,1745922642384,-400.0,0.00036164,3]
[359324391,1745922642393,-400.0,0.00036164,3]
[359324393,1745922642402,-400.0,0.00036164,3]
[359324395,1745922642412,-400.0,0.00036164,3]
[359324397,1745922642422,-400.0,0.00036164,3]
[359324399,1745922642431,-400.0,0.00036164,3]
[359324401,1745922642440,-614.38,0.00036164,3]
[359324403,1745922642449,-710.68,0.00036164,3]
[359324404,1745922642459,-400.0,0.00036164,3]
[359324406,1745922642468,-400.0,0.00036164,3]
[359324408,1745922642478,-400.0,0.00036164,3]
[359324409,1745922642487,-400.0,0.00036164,3]
[359324410,1745922642496,-314.64416301,0.00036164,3]
[359324411,1745922642506,-400.0,0.00036164,3]
[359324412,1745922642515,-778.75,0.00036164,3]
[359324413,1745922642525,-843.15,0.00036164,3]
[359324414,1745922642534,-507.14,0.00036164,3]
[359324415,1745922642546,-461.31,0.00036164,3]
[359324416,1745922642556,-737.6,0.00036164,3]
[359324418,1745922642565,-310.59050031,0.00036164,3]
[359324419,1745922642575,-400.0,0.00036164,3]
[359324420,1745922642584,-579.37,0.00036164,3]
[359324421,1745922642594,-400.0,0.00036164,3]
[359324422,1745922642604,-1129.43,0.00036164,3]
[359324423,1745922642613,-400.0,0.00036164,3]
[359324424,1745922642623,-2744.68,0.00036164,3]
[359324425,1745922642632,-507.62,0.00036164,3]
[359324426,1745922642641,-317.37415595,0.00036164,3]
[359324427,1745922642650,-1676.05,0.00036164,3]
[359324429,1745922642659,-679.62,0.00036164,3]
[359324431,1745922642668,-729.42,0.00036164,3]
[359324435,1745922642678,-472.57,0.00036164,3]
[359324438,1745922642687,-400.0,0.00036164,3]
[359324442,1745922642696,-400.0,0.00036164,3]
[359324445,1745922642706,-4983.69,0.00036164,3]
[359324448,1745922642715,-1094.83,0.00036164,3]
[359324450,1745922642725,-400.0,0.00036164,3]
[359324456,1745922642734,-539.41,0.00036164,3]
[359324458,1745922642783,-400.0,0.00036164,3]
[359324460,1745922642792,-500.0,0.00036164,3]
[359324462,1745922642802,-400.0,0.00036164,3]
[359324464,1745922642811,-400.0,0.00036164,3]
[359324466,1745922642821,-429.03,0.00036164,3]
[359324468,1745922642830,-400.0,0.00036164,3]
[359324470,1745922642839,-1569.51,0.00036164,3]
[359324472,1745922642849,-400.0,0.00036164,3]
[359324474,1745922642858,-400.0,0.00036164,3]
[359324476,1745922642867,-400.0,0.00036164,3]
[359324478,1745922642876,-400.0,0.00036164,3]
[359324480,1745922642886,-582.57,0.00036164,3]
[359324482,1745922642894,-400.0,0.00036164,3]
[359324484,1745922642903,-400.0,0.00036164,3]
[359324486,1745922642912,-209.15763848,0.00036164,3]
[359324488,1745922642922,-324.16601697,0.00036164,3]
[359324523,1745922643249,-500.0,0.00035616,3]
[359324525,1745922643258,-1644.36398303,0.00036164,3]
[359324527,1745922643268,-621.56,0.00036164,3]
[359324529,1745922643277,-400.0,0.00036164,3]
[359324531,1745922643286,-2132.49,0.00036164,3]
[359324533,1745922643295,-814.03,0.00036164,3]
[359324535,1745922643304,-400.0,0.00036164,3]
[359324537,1745922643313,-312.12518479,0.00036164,3]
[359324539,1745922643323,-805.39,0.00036164,3]
[359324541,1745922643332,-704.17,0.00036164,3]
[359324543,1745922643341,-658.92,0.00036164,3]
[359324545,1745922643350,-400.0,0.00036164,3]
[359324547,1745922643360,-861.58,0.00036164,3]
[359324549,1745922643369,-1060.71,0.00036164,3]
[359324551,1745922643378,-400.0,0.00036164,3]
[359324553,1745922643388,-622.88,0.00036164,3]
[359324555,1745922643396,-599.64,0.00036164,3]
[359324557,1745922643405,-400.0,0.00036164,3]
[359324559,1745922643414,-400.0,0.00036164,3]
[359324561,1745922643424,-376.90409221,0.00036164,3]
[359324563,1745922643433,-400.0,0.00036164,3]
[359324565,1745922643442,-1380.1,0.00036164,3]
[359324567,1745922643451,-400.0,0.00036164,3]
[359324569,1745922643460,-512.24,0.00036164,3]
[359324571,1745922643478,-400.0,0.00036164,3]
[359324574,1745922643490,-883.94,0.00036164,3]
[359324576,1745922643499,-1010.76,0.00036164,3]
[359324578,1745922643509,-2127.15,0.00036164,3]
[359324580,1745922643518,-315.14769344,0.00036164,3]
[359324582,1745922643527,-511.01340646,0.00036164,3]
[359324585,1745922643536,-1614.14,0.00036164,3]
[359324588,1745922643545,-151.0,0.00036164,14]
[359324590,1745922643555,-151.0,0.00036164,14]
[359324593,1745922643565,-3238.76,0.00036164,3]
[359324596,1745922643574,-714.04,0.00036164,3]
[359324598,1745922643583,-1634.2,0.00036164,3]
[359324601,1745922643592,-424.54,0.00036164,3]
[359324603,1745922643602,-5143.41,0.00036164,3]
[359324606,1745922643611,-2597.03,0.00036164,3]
[359324608,1745922643621,-2033.23,0.00036164,3]
[359324611,1745922643630,-7134.96,0.00036164,3]
[359324613,1745922643639,-677.76,0.00036164,3]
[359324615,1745922643649,-414.49530761,0.00036164,3]
[359324617,1745922643658,-400.0,0.00036164,3]
[359324618,1745922643667,-3603.37,0.00036164,3]
[359324620,1745922643677,-4706.28,0.00036164,3]
[359324622,1745922643686,-1254.33,0.00036164,3]
[359324624,1745922643695,-426.3,0.00036164,3]
[359324626,1745922643705,-723.16,0.00036164,3]
[359324628,1745922643714,-865.74,0.00036164,3]
[359324631,1745922643724,-1773.04,0.00036164,3]
[359324632,1745922643733,-412.16617229,0.00036164,3]
[359324634,1745922643743,-400.0,0.00036164,3]
[359324636,1745922643752,-400.0,0.00036164,3]
[359324638,1745922643762,-409.75293461,0.00036164,3]
[359324640,1745922643771,-400.0,0.00036164,3]
[359324642,1745922643780,-2435.5,0.00036164,3]
[359324644,1745922643790,-564.86,0.00036164,3]
[359324646,1745922643799,-400.0,0.00036164,3]
[359324648,1745922643807,-400.0,0.00036164,3]
[359324650,1745922643817,-3151.5,0.00036164,3]
[359324652,1745922643826,-430.38470844,0.00036164,3]
[359324654,1745922643835,-742.97,0.00036164,3]
[359324656,1745922643844,-1227.94,0.00036164,3]
[359324658,1745922643853,-666.56,0.00036164,3]
[359324660,1745922643863,-717.92,0.00036164,3]
[359324662,1745922643875,-475.29,0.00036164,3]
[359324664,1745922643884,-400.0,0.00036164,3]
[359324666,1745922643893,-400.0,0.00036164,3]
[359324668,1745922643903,-3134.31,0.00036164,3]
[359324670,1745922643912,-493.05,0.00036164,3]
[359324673,1745922643923,-3020.07,0.00036164,2]
[359324675,1745922643932,-2942.08,0.00036164,3]
[359324677,1745922643942,-1431.37,0.00036164,3]
[359324679,1745922643951,-2174.15,0.00036164,3]
[359324681,1745922643960,-400.0,0.00036164,3]
[359324682,1745922643970,-1258.98,0.00036164,3]
[359324685,1745922643980,-1000.0,0.00036164,3]
[359324687,1745922643989,-4799.57,0.00036164,3]
[359324688,1745922643999,-400.0,0.00036164,3]
[359324691,1745922644009,-400.0,0.00036164,3]
[359324692,1745922644019,-827.81,0.00036164,3]
[359324694,1745922644028,-413.96,0.00036164,3]
[359324696,1745922644037,-1506.91,0.00036164,3]
[359324698,1745922644047,-438.22,0.00036164,3]
[359324701,1745922644056,-10675.77,0.00036164,3]
[359324703,1745922644066,-872.94,0.00036164,3]
[359324705,1745922644075,-1784.51,0.00036164,3]
[359324707,1745922644084,-400.0,0.00036164,3]
[359324708,1745922644093,-2325.79,0.00036164,3]
[359324711,1745922644107,-3837.71,0.00036164,3]
[359324713,1745922644116,-839.66,0.00036164,3]
[359324715,1745922644126,-3010.95,0.00036164,3]
[359324717,1745922644135,-400.0,0.00036164,3]
[359324719,1745922644144,-400.0,0.00036164,3]
[359324721,1745922644154,-307.93818037,0.00036164,3]
[359324723,1745922644166,-575.73,0.00036164,3]
[359324725,1745922644176,-491.93,0.00036164,3]